fUSD/lending_fUSD_20251006
["ID","MTS","AMOUNT","RATE_DAILY","PERIOD"]
[389683013,1759792232847,-208.87340754,0.00027881,2]
[389683015,1759792232856,-734.91517781,0.000279,2]
[389683371,1759792238102,-1265.08482219,0.000279,2]
[389683372,1759792238111,-518.81,0.000279,2]
[389683373,1759792238121,-589.64,0.00027929,2]
[389683374,1759792238130,-168.0,0.00027932,2]
[389683375,1759792238139,-8565.75555911,0.00027936,2]
[389683376,1759792238148,-1354.191,0.00027959,18]
[389683377,1759792238157,-168.0,0.00027959,2]
[389683378,1759792238167,-251.20771628,0.00027991,2]
[389683379,1759792238178,-571.816212,0.00027991,2]
[389683382,1759792240125,-420.816212,0.00027991,2]
[389683383,1759792240136,-7638.84837452,0.00027991,2]
[389683384,1759792240146,-2046.0,0.00027996,2]
[389683385,1759792240155,-1265.0,0.00027996,2]
[389683386,1759792240163,-1274.15162549,0.00027996,2]
[389683387,1759792240174,-311.84837451,0.00027996,2]
[389683388,1759792240184,-570.0,0.00027996,2]
[389683389,1759792240193,-368.75162549,0.00027996,2]
[389683390,1759792240262,-235.24837451,0.00027996,2]
[389683391,1759792240272,-1307.0,0.00027996,2]
[389683392,1759792240281,-815.0,0.00027996,2]
[389683393,1759792240290,-59264.0264791,0.00028,2]
[389683394,1759792240299,-521.64,0.0002802,2]
[389683395,1759792240308,-519.37,0.0002804,2]
[389683397,1759792240318,-9211.34798985,0.00028046,2]
[389683398,1759792240327,-9552.16786547,0.00028101,2]
[389683399,1759792240340,-168.0,0.00028107,2]
[389683400,1759792240350,-4071.64389335,0.00028156,2]
[389683401,1759792240358,-800.0,0.00028218,13]
[389683402,1759792240368,-800.0,0.00028218,13]
[389683403,1759792240378,-800.0,0.00028218,13]
[389683404,1759792240387,-800.0,0.00028218,13]
[389683406,1759792240396,-800.0,0.00028218,13]
[389683408,1759792240405,-800.0,0.00028218,13]
[389683410,1759792240416,-800.0,0.00028218,13]
[389683411,1759792240426,-465.0,0.00028218,13]
[389683412,1759792240434,-150.0,0.00028258,7]
[389683413,1759792240443,-150.0,0.00028258,7]
[389683414,1759792240452,-437.0,0.00028301,2]
[389683415,1759792240461,-219.84,0.00028323,2]
[389683416,1759792240469,-4117.0,0.00028398,2]
[389683417,1759792240478,-621.0,0.00028398,2]
[389683418,1759792240487,-900.0,0.00028398,2]
[389683419,1759792240496,-2543.0,0.00028398,2]
[389683420,1759792240505,-1510.22384983,0.0002842,2]
[389683421,1759792240514,-544.63,0.00028575,2]
[389683422,1759792240523,-167.76,0.00028575,2]
[389683423,1759792240532,-825.3,0.00028575,2]
[389683424,1759792240541,-184.23686568,0.000287,2]
[389683425,1759792240549,-184.23686563,0.000287,2]
[389683426,1759792240558,-184.23686563,0.000287,2]
[389683427,1759792240567,-184.23686563,0.000287,2]
[389683428,1759792240576,-184.23686563,0.000287,2]
[389683429,1759792240585,-184.23686563,0.000287,2]
[389683430,1759792240595,-184.23686563,0.000287,2]
[389683431,1759792240604,-184.23686563,0.000287,2]
[389683432,1759792240613,-184.23686563,0.000287,2]
[389683433,1759792240623,-184.23686563,0.000287,2]
[389683434,1759792240631,-184.23686563,0.000287,2]
[389683435,1759792240640,-184.23686563,0.000287,2]
[389683436,1759792240649,-462.0,0.0002871,120]
[389683437,1759792240658,-184.23686563,0.00028721,2]
[389683438,1759792240667,-184.23686563,0.00028781,2]
[389683439,1759792240677,-202.0,0.000288,2]
[389683440,1759792240687,-1014.0,0.000288,2]
[389683441,1759792240696,-168.0,0.00028809,2]
[389683442,1759792240706,-168.0,0.00028831,2]
[389683443,1759792240715,-184.23686563,0.0002884,2]
[389683444,1759792240724,-184.23686563,0.000289,2]
[389683445,1759792240734,-1413.0,0.00028927,2]
[389683446,1759792240743,-168.0,0.00028955,2]
[389683447,1759792240752,-255.61475,0.0002898,2]
[389683448,1759792240762,-312.80811541,0.00029,3]
[389683449,1759792240771,-255.61476,0.0002901,2]
[389683450,1759792240781,-1333.8135,0.0002902,2]
[389683451,1759792240790,-1000.0,0.0002902,2]
[389683452,1759792240800,-1000.0,0.00029021,2]
[389683453,1759792240809,-722.06298046,0.00029032,7]
[389683454,1759792240818,-1000.0,0.00029034,2]
[389683455,1759792240828,-1000.0,0.0002904,2]
[389683456,1759792240838,-150.0,0.00029049,2]
[389683457,1759792240847,-1000.0,0.00029058,2]
[389683458,1759792240856,-200.0,0.00029063,2]
[389683459,1759792240866,-150.0,0.00029064,2]
[389683460,1759792240874,-1000.0,0.00029082,2]
[389683461,1759792240883,-1425.0,0.00029093,2]
[389683462,1759792240893,-150.0,0.00029129,2]
[389683463,1759792240902,-151.0,0.00029135,7]
[389683464,1759792240912,-158.97453011,0.00029138,15]
[389683465,1759792240921,-494.48624546,0.00029138,2]
[389683466,1759792240930,-312.12453346,0.00029138,2]
[389683467,1759792240940,-1000.0,0.00029139,2]
[389683468,1759792240949,-253.89539394,0.00029148,2]
[389683469,1759792240958,-988.69015098,0.00029148,2]
[389683470,1759792240967,-1000.0,0.0002915,2]
[389683471,1759792240977,-988.69015098,0.00029152,2]
[389683472,1759792240986,-988.69015098,0.00029156,2]
[389683473,1759792240995,-983.25890506,0.00029157,4]
[389683474,1759792241004,-192.44183174,0.00029158,2]
[389683475,1759792241013,-1000.0,0.00029158,2]
[389683476,1759792241023,-5000.0,0.00029158,2]
[389683477,1759792241032,-988.69015098,0.0002916,2]
[389683478,1759792241042,-988.69015098,0.00029164,2]
[389683479,1759792241052,-988.69015098,0.00029168,2]
[389683480,1759792241060,-988.69015098,0.00029172,2]
[389683481,1759792241070,-988.69015098,0.00029176,2]
[389683482,1759792241079,-1197.76,0.00029178,2]
[389683483,1759792241088,-175.72,0.00029178,2]
[389683484,1759792241097,-1089.18,0.00029178,2]
[389683485,1759792241106,-150.0,0.00029178,2]
[389683486,1759792241115,-412.91,0.00029178,2]
[389683487,1759792241124,-150.0,0.00029178,2]
[389683488,1759792241133,-167.94,0.00029178,2]
[389683489,1759792241142,-175.72,0.00029178,2]
[389683490,1759792241151,-175.72,0.00029178,2]
[389683491,1759792241160,-324.19,0.00029178,2]
[389683492,1759792241169,-331.87,0.00029178,2]
[389683493,1759792241177,-150.0,0.00029178,2]
[389683494,1759792241186,-150.0,0.00029178,2]
[389683495,1759792241195,-150.0,0.00029178,2]
[389683496,1759792241204,-988.69015098,0.0002918,2]
[389683497,1759792241213,-988.69015098,0.00029184,2]
[389683498,1759792241222,-169.1,0.000292,20]
[389683499,1759792241231,-1000.0,0.00029203,2]
[389683500,1759792241241,-1425.0,0.00029203,2]
[389683501,1759792241249,-1425.0,0.00029206,2]
[389683502,1759792241259,-1000.0,0.00029212,2]
[389683503,1759792241268,-1000.0,0.00029223,2]
[389683504,1759792241277,-1413.0,0.00029225,2]
[389683505,1759792241286,-320.22267972,0.00029227,2]
[389683506,1759792241295,-320.22267972,0.00029227,2]
[389683507,1759792241304,-150.0,0.00029233,7]
[389683508,1759792241313,-290.75041273,0.00029233,7]
[389683509,1759792241322,-266.19907625,0.00029233,7]
[389683510,1759792241332,-150.0,0.00029233,7]
[389683511,1759792241344,-150.0,0.00029233,7]
[389683512,1759792241353,-182.95396817,0.00029233,7]
[389683513,1759792241361,-151.0,0.00029234,7]
[389683514,1759792241370,-836897.04311571,0.00029237,7]
[389683515,1759792241396,-12896.5549813,0.00029237,7]
[389683516,1759792241409,-1340.0,0.00029237,7]
[389683520,1759792243041,-1067.86847001,0.00029237,7]
[389683521,1759792243052,-31263.34323157,0.00029237,7]
[389683522,1759792243063,-23452.65698015,0.00029237,7]
[389683523,1759792243074,-1806.22920627,0.00029237,7]
[389683524,1759792243170,-2915143.86607175,0.00029237,7]
[389683525,1759792243179,-628567.407232,0.00029237,3]
[389683526,1759792243189,-618716.873495,0.00029237,3]
[389683527,1759792243199,-151.0,0.00029238,30]
[389683528,1759792243208,-151.0,0.00029238,30]
[389683529,1759792243217,-151.0,0.00029238,30]
[389683530,1759792243226,-151.0,0.00029238,30]
[389683531,1759792243235,-151.0,0.00029238,30]
[389683532,1759792243244,-173.715881,0.00029238,30]
[389683533,1759792243253,-151.0,0.00029238,30]
[389683534,1759792243262,-173.715881,0.00029238,30]
[389683535,1759792243271,-851.459811,0.00029238,30]
[389683536,1759792243280,-851.459811,0.00029238,30]
[389683537,1759792243289,-151.0,0.00029238,30]
[389683538,1759792243298,-173.715881,0.00029238,30]
[389683539,1759792243307,-151.0,0.00029238,30]
[389683540,1759792243316,-173.715881,0.00029238,30]
[389683541,1759792243325,-851.459811,0.00029238,30]
[389683542,1759792243336,-851.459811,0.00029238,30]
[389683543,1759792243346,-173.715881,0.00029238,30]
[389683544,1759792243357,-173.715881,0.00029238,30]
[389683545,1759792243366,-851.459811,0.00029238,30]
[389683549,1759792243567,-851.459811,0.00029238,30]
[389683550,1759792243577,-173.715881,0.00029238,30]
[389683551,1759792243585,-173.715881,0.00029238,30]
[389683552,1759792243594,-851.459811,0.00029238,30]
[389683553,1759792243603,-851.459811,0.00029238,30]
[389683554,1759792243612,-151.0,0.00029238,30]
[389683555,1759792243621,-151.0,0.00029238,30]
[389683556,1759792243630,-151.0,0.00029238,30]
[389683557,1759792243640,-151.0,0.00029238,30]
[389683558,1759792243650,-151.0,0.00029238,30]
[389683559,1759792243659,-151.0,0.00029238,30]
[389683560,1759792243668,-151.0,0.00029238,30]
[389683561,1759792243677,-164.37537,0.00029238,30]
[389683562,1759792243688,-164.37537,0.00029238,30]
[389683563,1759792243697,-215.882408,0.00029238,30]
[389683564,1759792243707,-151.0,0.00029238,30]
[389683565,1759792243716,-164.37537,0.00029238,30]
[389683566,1759792243725,-151.0,0.00029238,30]
[389683567,1759792243735,-164.37537,0.00029238,30]
[389683568,1759792243744,-164.37537,0.00029238,30]
[389683569,1759792243754,-164.37537,0.00029238,30]
[389683570,1759792243763,-164.37537,0.00029238,30]
[389683571,1759792243772,-164.37537,0.00029238,30]
[389683572,1759792243781,-151.0,0.00029238,30]
[389683573,1759792243790,-151.0,0.00029238,30]
[389683574,1759792243799,-151.0,0.00029238,30]
[389683575,1759792243809,-151.0,0.00029238,30]
[389683576,1759792243818,-151.0,0.00029238,30]
[389683577,1759792243828,-151.0,0.00029238,30]
[389683578,1759792243837,-151.0,0.00029238,30]
[389683579,1759792243847,-151.0,0.00029238,30]
[389683580,1759792243856,-151.0,0.00029238,30]
[389683581,1759792243866,-296.621368,0.00029238,30]
[389683582,1759792243875,-174.207824,0.00029238,30]
[389683583,1759792243884,-224.135303,0.00029238,30]
[389683584,1759792243894,-224.135303,0.00029238,30]
[389683585,1759792243903,-224.135303,0.00029238,30]
[389683586,1759792243912,-224.135303,0.00029238,30]
[389683587,1759792243921,-224.135303,0.00029238,30]
[389683588,1759792243931,-224.135303,0.00029238,30]
[389683589,1759792243940,-224.135303,0.00029238,30]
[389683590,1759792243950,-224.135303,0.00029238,30]
[389683591,1759792243959,-151.0,0.00029238,30]
[389683592,1759792243969,-151.0,0.00029238,30]
[389683593,1759792243978,-151.0,0.00029238,30]
[389683594,1759792243987,-151.0,0.00029238,30]
[389683595,1759792243996,-151.0,0.00029238,30]
[389683596,1759792244005,-151.0,0.00029238,30]
[389683597,1759792244014,-151.0,0.00029238,30]
[389683598,1759792244023,-151.0,0.00029238,30]
[389683599,1759792244032,-151.0,0.00029238,30]
[389683600,1759792244042,-151.0,0.00029238,30]
[389683601,1759792244051,-151.0,0.00029238,30]
[389683602,1759792244060,-151.0,0.00029238,15]
[389683603,1759792244069,-151.0,0.00029238,15]
[389683604,1759792244078,-151.0,0.00029238,30]
[389683605,1759792244087,-724.692545,0.00029238,30]
[389683606,1759792244096,-151.0,0.00029238,30]
[389683607,1759792244105,-724.692545,0.00029238,30]
[389683608,1759792244114,-151.0,0.00029238,15]
[389683609,1759792244122,-235.209633,0.00029238,15]
[389683610,1759792244131,-151.0,0.00029238,30]
[389683611,1759792244140,-724.692545,0.00029238,30]
[389683612,1759792244150,-151.0,0.00029238,30]
[389683613,1759792244159,-724.692545,0.00029238,30]
[389683614,1759792244168,-151.0,0.00029238,30]
[389683615,1759792244179,-151.0,0.00029238,30]
[389683616,1759792244188,-724.692545,0.00029238,30]
[389683617,1759792244197,-724.692545,0.00029238,30]
[389683618,1759792244206,-151.0,0.00029238,30]
[389683619,1759792244216,-225.452993,0.00029238,30]
[389683620,1759792244226,-724.692545,0.00029238,30]
[389683621,1759792244236,-151.0,0.00029238,30]
[389683622,1759792244245,-724.692545,0.00029238,30]
[389683623,1759792244255,-151.0,0.00029238,30]
[389683624,1759792244263,-198.603133,0.00029238,30]
[389683625,1759792244273,-151.0,0.00029238,30]
[389683626,1759792244282,-151.0,0.00029238,30]
[389683627,1759792244291,-151.0,0.00029238,30]
[389683628,1759792244300,-269.682844,0.00029238,30]
[389683629,1759792244309,-151.0,0.00029238,30]
[389683630,1759792244320,-258.774584,0.00029238,30]
[389683631,1759792244329,-151.0,0.00029238,30]
[389683632,1759792244342,-151.0,0.00029238,30]
[389683633,1759792244351,-151.0,0.00029238,30]
[389683634,1759792244361,-151.0,0.00029238,30]
[389683635,1759792244370,-151.0,0.00029238,30]
[389683636,1759792244379,-203.045526,0.00029238,30]
[389683637,1759792244388,-151.0,0.00029238,30]
[389683638,1759792244397,-151.0,0.00029238,30]
[389683639,1759792244408,-323.89728946,0.00029239,2]
[389683640,1759792244417,-328.43111028,0.00029239,2]
[389683641,1759792244426,-500.0,0.00029239,2]
[389683642,1759792244435,-500.0,0.00029239,2]
[389683643,1759792244445,-455.17936745,0.00029239,2]
[389683644,1759792244454,-500.0,0.00029239,2]
[389683645,1759792244464,-233.88741597,0.00029239,2]
[389683646,1759792244473,-500.0,0.00029239,2]
[389683647,1759792244482,-225.30289166,0.00029239,2]
[389683648,1759792244491,-500.0,0.00029239,2]
[389683649,1759792244500,-500.0,0.00029239,2]
[389683650,1759792244510,-500.0,0.00029239,2]
[389683651,1759792244519,-500.0,0.00029239,2]
[389683652,1759792244528,-500.0,0.00029239,2]
[389683653,1759792244538,-500.0,0.00029239,2]
[389683654,1759792244548,-500.0,0.00029239,2]
[389683655,1759792244557,-500.0,0.00029239,2]
[389683656,1759792244566,-502.65706497,0.00029239,2]
[389683657,1759792244575,-500.0,0.00029239,2]
[389683658,1759792244584,-500.0,0.00029239,2]
[389683659,1759792244593,-500.0,0.00029239,2]
[389683660,1759792244602,-500.0,0.00029239,2]
[389683661,1759792244611,-300.0,0.00029246,10]
[389683662,1759792244620,-675.83635721,0.00029246,10]
[389683663,1759792244629,-151.0,0.00029248,30]
[389683664,1759792244638,-151.0,0.00029248,30]
[389683665,1759792244647,-151.0,0.00029248,30]
[389683666,1759792244656,-151.0,0.00029248,30]
[389683667,1759792244665,-151.0,0.00029248,30]
[389683668,1759792244675,-151.0,0.00029248,30]
[389683669,1759792244684,-151.0,0.00029248,30]
[389683670,1759792244693,-151.0,0.00029248,30]
[389683671,1759792244702,-151.0,0.00029248,30]
[389683672,1759792244711,-151.0,0.00029248,30]
[389683673,1759792244720,-151.0,0.00029248,30]
[389683674,1759792244729,-151.0,0.00029248,30]
[389683675,1759792244739,-151.0,0.00029248,30]
[389683676,1759792244748,-151.0,0.00029248,30]
[389683677,1759792244757,-151.0,0.00029248,30]
[389683678,1759792244766,-151.0,0.00029248,30]
[389683679,1759792244775,-151.0,0.00029248,30]
[389683680,1759792244784,-154.823117,0.00029248,30]
[389683681,1759792244794,-151.0,0.00029248,30]
[389683682,1759792244803,-151.0,0.00029248,30]
[389683683,1759792244812,-151.0,0.00029248,30]
[389683684,1759792244821,-151.0,0.00029248,30]
[389683685,1759792244830,-151.0,0.00029248,30]
[389683686,1759792244842,-223.433224,0.00029248,30]
[389683687,1759792244851,-151.0,0.00029248,30]
[389683688,1759792244860,-151.0,0.00029248,30]
[389683689,1759792244869,-223.433224,0.00029248,30]
[389683690,1759792244878,-217.01066,0.00029248,30]
[389683691,1759792244887,-190.653791,0.00029248,30]
[389683692,1759792244896,-151.0,0.00029248,30]
[389683693,1759792244906,-223.433224,0.00029248,30]
[389683694,1759792244914,-217.01066,0.00029248,30]
[389683695,1759792244923,-190.653791,0.00029248,30]
[389683696,1759792244933,-223.433224,0.00029248,30]
[389683697,1759792244942,-217.01066,0.00029248,30]
[389683698,1759792244951,-190.653791,0.00029248,30]
[389683699,1759792244960,-151.0,0.00029248,30]
[389683700,1759792244969,-217.01066,0.00029248,30]
[389683701,1759792244979,-190.653791,0.00029248,30]
[389683702,1759792244988,-151.0,0.00029248,30]
[389683703,1759792244997,-151.0,0.00029248,30]
[389683704,1759792245006,-151.0,0.00029248,30]
[389683705,1759792245015,-151.0,0.00029248,30]
[389683706,1759792245024,-151.0,0.00029248,30]
[389683707,1759792245033,-151.0,0.00029248,30]
[389683708,1759792245042,-151.0,0.00029248,30]
[389683709,1759792245051,-151.0,0.00029248,30]
[389683710,1759792245060,-151.0,0.00029248,30]
[389683711,1759792245069,-151.0,0.00029248,30]
[389683712,1759792245078,-151.0,0.00029248,30]
[389683713,1759792245087,-151.0,0.00029248,30]
[389683714,1759792245096,-151.0,0.00029248,30]
[389683715,1759792245106,-151.0,0.00029248,30]
[389683716,1759792245115,-151.0,0.00029248,30]
[389683717,1759792245124,-151.0,0.00029248,30]
[389683718,1759792245133,-151.0,0.00029248,30]
[389683719,1759792245142,-151.0,0.00029248,30]
[389683720,1759792245151,-151.0,0.00029248,30]
[389683721,1759792245160,-151.0,0.00029248,30]
[389683722,1759792245169,-151.0,0.00029248,30]
[389683723,1759792245179,-151.0,0.00029248,30]
[389683724,1759792245188,-151.0,0.00029248,30]
[389683725,1759792245198,-151.0,0.00029248,30]
[389683726,1759792245207,-151.0,0.00029248,30]
[389683727,1759792245216,-151.0,0.00029248,30]
[389683728,1759792245225,-151.0,0.00029248,30]
[389683729,1759792245234,-151.0,0.00029248,30]
[389683730,1759792245243,-151.0,0.00029248,30]
[389683731,1759792245253,-151.0,0.00029248,30]
[389683732,1759792245262,-151.0,0.00029248,30]
[389683733,1759792245272,-151.0,0.00029248,30]
[389683734,1759792245282,-204.936588,0.00029248,30]
[389683735,1759792245291,-151.0,0.00029248,30]
[389683736,1759792245300,-151.0,0.00029248,30]
[389683737,1759792245309,-151.0,0.00029248,10]
[389683738,1759792245319,-151.0,0.00029248,10]
[389683739,1759792245328,-151.0,0.00029248,30]
[389683740,1759792245342,-151.0,0.00029248,30]
[389683741,1759792245351,-151.0,0.00029248,30]
[389683742,1759792245360,-151.0,0.00029248,30]
[389683743,1759792245369,-151.0,0.00029248,30]
[389683744,1759792245379,-151.0,0.00029248,30]
[389683745,1759792245388,-151.0,0.00029248,30]
[389683746,1759792245398,-151.0,0.00029248,30]
[389683747,1759792245407,-151.0,0.00029248,30]
[389683748,1759792245416,-151.0,0.00029248,30]
[389683749,1759792245426,-151.0,0.00029248,30]
[389683750,1759792245435,-151.0,0.00029248,30]
[389683751,1759792245444,-151.0,0.00029248,30]
[389683752,1759792245453,-151.0,0.00029248,30]
[389683753,1759792245463,-151.0,0.00029248,30]
[389683754,1759792245472,-151.0,0.00029248,30]
[389683755,1759792245481,-151.0,0.00029248,2]
[389683756,1759792245491,-151.0,0.00029248,30]
[389683757,1759792245500,-151.0,0.00029248,2]
[389683758,1759792245509,-151.0,0.00029248,30]
[389683759,1759792245519,-151.0,0.00029248,2]
[389683760,1759792245528,-151.0,0.00029248,30]
[389683761,1759792245538,-260.415952,0.00029248,30]
[389683762,1759792245548,-151.0,0.00029248,30]
[389683763,1759792245557,-151.0,0.00029248,30]
[389683764,1759792245567,-151.0,0.00029248,30]
[389683765,1759792245576,-1086.67949851,0.00029251,2]
[389683766,1759792245585,-150.0,0.00029257,20]
[389683767,1759792245595,-204.0,0.00029258,5]
[389683768,1759792245604,-244255.94004004,0.00029258,2]
[389683769,1759792245614,-151.0,0.00029258,30]
[389683770,1759792245624,-151.0,0.00029258,30]
[389683771,1759792245634,-151.0,0.00029258,30]
[389683772,1759792245643,-151.0,0.00029258,30]
[389683773,1759792245653,-151.0,0.00029258,30]
[389683774,1759792245663,-151.0,0.00029258,30]
[389683775,1759792245672,-151.0,0.00029258,30]
[389683776,1759792245682,-151.0,0.00029258,30]
[389683777,1759792245691,-151.0,0.00029258,30]
[389683778,1759792245702,-151.0,0.00029258,30]
[389683779,1759792245712,-151.0,0.00029258,30]
[389683780,1759792245722,-151.0,0.00029258,30]
[389683781,1759792245731,-151.0,0.00029258,30]
[389683782,1759792245741,-185.726584,0.00029258,30]
[389683783,1759792245750,-151.0,0.00029258,30]
[389683784,1759792245760,-151.0,0.00029258,30]
[389683785,1759792245770,-151.0,0.00029258,30]
[389683786,1759792245779,-151.0,0.00029258,30]
[389683787,1759792245789,-151.0,0.00029258,30]
[389683788,1759792245799,-151.0,0.00029258,30]
[389683789,1759792245808,-151.0,0.00029258,30]
[389683790,1759792245818,-151.0,0.00029258,30]
[389683791,1759792245828,-223.433224,0.00029258,30]
[389683792,1759792245838,-151.0,0.00029258,30]
[389683793,1759792245848,-151.0,0.00029258,30]
[389683794,1759792245857,-223.433224,0.00029258,30]
[389683795,1759792245867,-217.01066,0.00029258,30]
[389683796,1759792245876,-190.653791,0.00029258,30]
[389683797,1759792245887,-151.0,0.00029258,30]
[389683798,1759792245896,-223.433224,0.00029258,30]
[389683799,1759792245907,-217.01066,0.00029258,30]
[389683800,1759792245917,-190.653791,0.00029258,30]
[389683801,1759792245926,-223.433224,0.00029258,30]
[389683802,1759792245935,-217.01066,0.00029258,30]
[389683803,1759792245945,-190.653791,0.00029258,30]
[389683804,1759792245954,-151.0,0.00029258,30]
[389683805,1759792245964,-217.01066,0.00029258,30]
[389683806,1759792245973,-190.653791,0.00029258,30]
[389683807,1759792245982,-151.0,0.00029258,30]
[389683808,1759792245991,-151.0,0.00029258,30]
[389683809,1759792246000,-151.0,0.00029258,30]
[389683810,1759792246010,-151.0,0.00029258,30]
[389683811,1759792246019,-151.0,0.00029258,30]
[389683812,1759792246028,-177.926088,0.00029258,30]
[389683813,1759792246038,-151.0,0.00029258,30]
[389683814,1759792246047,-151.0,0.00029258,30]
[389683815,1759792246056,-151.0,0.00029258,30]
[389683816,1759792246066,-151.0,0.00029258,30]
[389683817,1759792246077,-151.0,0.00029258,30]
[389683818,1759792246086,-151.0,0.00029258,30]
[389683819,1759792246095,-151.0,0.00029258,30]
[389683820,1759792246104,-151.0,0.00029258,30]
[389683821,1759792246113,-151.0,0.00029258,30]
[389683822,1759792246122,-151.0,0.00029258,30]
[389683823,1759792246131,-151.0,0.00029258,30]
[389683824,1759792246141,-151.0,0.00029258,30]
[389683825,1759792246151,-151.0,0.00029258,30]
[389683826,1759792246160,-151.0,0.00029258,30]
[389683827,1759792246169,-151.0,0.00029258,30]
[389683828,1759792246178,-232.478052,0.00029258,30]
[389683829,1759792246187,-180.137647,0.00029258,30]
[389683830,1759792246197,-151.0,0.00029258,30]
[389683831,1759792246206,-151.0,0.00029258,30]
[389683832,1759792246216,-151.0,0.00029258,30]
[389683833,1759792246225,-151.0,0.00029258,30]
[389683834,1759792246235,-195.057341,0.00029258,30]
[389683835,1759792246244,-151.0,0.00029258,30]
[389683836,1759792246253,-224.841616,0.00029258,30]
[389683837,1759792246263,-151.0,0.00029258,30]
[389683838,1759792246272,-151.0,0.00029258,10]
[389683839,1759792246280,-151.0,0.00029258,10]
[389683840,1759792246290,-151.0,0.00029258,30]
[389683841,1759792246300,-151.0,0.00029258,30]
[389683842,1759792246310,-151.0,0.00029258,30]
[389683843,1759792246319,-151.0,0.00029258,30]
[389683844,1759792246328,-274.473059,0.00029258,30]
[389683845,1759792246342,-151.0,0.00029258,30]
[389683847,1759792246351,-151.0,0.00029258,30]
[389683848,1759792246360,-151.0,0.00029258,30]
[389683849,1759792246369,-151.0,0.00029258,30]
[389683850,1759792246379,-151.0,0.00029258,30]
[389683851,1759792246388,-151.0,0.00029258,30]
[389683852,1759792246398,-210.824686,0.00029258,30]
[389683853,1759792246407,-151.0,0.00029258,30]
[389683854,1759792246422,-277.037348,0.00029258,30]
[389683855,1759792246431,-151.0,0.00029258,30]
[389683856,1759792246440,-151.0,0.00029258,30]
[389683857,1759792246450,-151.0,0.00029258,2]
[389683858,1759792246459,-151.0,0.00029258,30]
[389683859,1759792246469,-151.0,0.00029258,2]
[389683860,1759792246478,-205.756289,0.00029258,30]
[389683861,1759792246488,-151.0,0.00029258,2]
[389683863,1759792246497,-151.0,0.00029258,30]
[389683864,1759792246506,-196.692464,0.00029258,30]
[389683865,1759792246515,-151.0,0.00029258,30]
[389683866,1759792246524,-151.0,0.00029258,30]
[389683867,1759792246534,-151.0,0.00029258,30]
[389683868,1759792246544,-173.715881,0.00029258,30]
[389683869,1759792246553,-851.459811,0.00029258,30]
[389683870,1759792246563,-151.0,0.00029258,30]
[389683871,1759792246573,-151.0,0.00029258,30]
[389683872,1759792246582,-173.715881,0.00029258,30]
[389683873,1759792246591,-851.459811,0.00029258,30]
[389683874,1759792246600,-173.715881,0.00029258,30]
[389683875,1759792246610,-851.459811,0.00029258,30]
[389683876,1759792246619,-173.715881,0.00029258,30]
[389683877,1759792246629,-851.459811,0.00029258,30]
[389683878,1759792246638,-151.0,0.00029258,30]
[389683879,1759792246648,-151.0,0.00029258,30]
[389683880,1759792246657,-164.37537,0.00029258,30]
[389683881,1759792246667,-164.37537,0.00029258,30]
[389683882,1759792246677,-164.37537,0.00029258,30]